[Event "Gibraltar Challengers A 2020"]
[Site "Caleta"]
[Date "2020.01.21"]
[Round "2.9"]
[White "Galvan, Jesus"]
[Black "Ungureanu, Sandu"]
[Result "0-1"]
[ECO "D26"]
[WhiteElo "2180"]
[BlackElo "2066"]
[Annotator "ChessBase"]
[PlyCount "106"]
[EventDate "2020.01.20"]
[EventType "swiss"]
[EventCountry "GGB"]
[SourceTitle "playchess.com"]
[Source "ChessBase"]
[SourceQuality "1"]
[TimeControl "6600+10"]

1. d4 {[%emt 0:00:00]} d5 {[%emt 0:00:00]} 2. c4 {[%emt 0:00:21]} dxc4 {[%emt 0:01:16]} 3. e3 {[%emt 0:00:50]} c5 {[%emt 0:01:58]} 4. Bxc4 {[%emt 0:00:30]} cxd4 {[%emt 0:00:07]} 5. Nf3 {[%emt 0:03:39]} Nc6 {[%emt 0:01:21]} 6. exd4 {[%emt 0:06:35]} e6 {[%emt 0:01:11]} 7. O-O {[%emt 0:00:52]} Nf6 {[%emt 0:00:06]} 8. Nc3 {[%emt 0:01:31]} Be7 {[%emt 0:01:58]} 9. Qe2 {[%emt 0:04:20]} O-O {[%emt 0:02:08]} 10. Rd1 {[%emt 0:00:44]} Nb4 {[%emt 0:03:39]} 11. Ne5 {[%emt 0:02:04]} a6 {[%emt 0:02:06]} 12. a3 {[%emt 0:03:20]} Nbd5 {[%emt 0:00:06]} 13. Rd3 {[%emt 0:01:37]} b5 {[%emt 0:00:38]} 14. Bb3 {[%emt 0:24:41]} Bb7 {[%emt 0:00:19]} 15. Rh3 {[%emt 0:01:40]} Nxc3 {[%emt 0:03:12]} 16. bxc3 {[%emt 0:00:17]} Be4 {[%emt 0:02:41]} 17. Bg5 {[%emt 0:01:23]} Bf5 {[%emt 0:02:33]} 18. Nc6 {[%emt 0:06:59]} Qc7 {[%emt 0:02:07]} 19. Nxe7+ {[%emt 0:00:10]} Qxe7 {[%emt 0:00:08]} 20. Rg3 {[%emt 0:00:08]} Rfd8 {[%emt 0:03:48]} 21. Qe5 {[%emt 0:08:04]} Kf8 {[%emt 0:00:45]} 22. d5 {[%emt 0:01:56]} h6 {[%emt 0:00:49]} 23. Bh4 {[%emt 0:12:35]} g5 {[%emt 0:03:11]} 24. Rxg5 {[%emt 0:00:15]} hxg5 {[%emt 0:00:24]} 25. Bxg5 {[%emt 0:00:07]} Kg7 {[%emt 0:02:52]} 26. Re1 {[%emt 0:09:04]} Rh8 {[%emt 0:04:43]} 27. Qxf5 {[%emt 0:06:51]} exf5 {[%emt 0:00:15]} 28. Rxe7 {[%emt 0:00:02]} Rhe8 {[%emt 0:00:24]} 29. Re3 {[%emt 0:02:36]} Rxe3 {[%emt 0:01:15]} 30. Bxe3 {[%emt 0:01:05]} Rd8 {[%emt 0:00:14]} 31. Bd4 {[%emt 0:04:34]} Kg6 {[%emt 0:00:11]} 32. Bc2 {[%emt 0:01:10]} Rxd5 {[%emt 0:00:31]} 33. f3 {[%emt 0:00:12]} Ne8 {[%emt 0:02:31]} 34. g4 {[%emt 0:00:27]} Nd6 {[%emt 0:00:04]} 35. h4 {[%emt 0:00:35]} f6 {[%emt 0:00:30]} 36. Kf2 {[%emt 0:01:21]} Kf7 {[%emt 0:00:31]} 37. h5 {[%emt 0:02:24]} fxg4 {[%emt 0:03:57]} 38. fxg4 {[%emt 0:00:01]} Rg5 {[%emt 0:00:56]} 39. Bg6+ {[%emt 0:01:09]} Ke6 {[%emt 0:01:03]} 40. Kf3 {[%emt 0:00:14]} Nc4 {[%emt 0:02:52]} 41. Kf4 {[%emt 0:00:00]} Nxa3 {[%emt 0:00:51]} 42. Be4 {[%emt 0:00:25]} Nc4 {[%emt 0:00:29]} 43. h6 {[%emt 0:00:01]} Nd6 {[%emt 0:00:39]} 44. h7 {[%emt 0:00:10]} Nf7 {[%emt 0:01:01]} 45. Bf5+ {[%emt 0:00:18]} Ke7 {[%emt 0:03:36]} 46. Bc5+ {[%emt 0:00:08]} Ke8 {[%emt 0:00:09]} 47. Bf2 {[%emt 0:00:08]} Kf8 {[%emt 0:00:53]} 48. Bh4 {[%emt 0:00:01]} Kg7 {[%emt 0:00:18]} 49. Be6 {[%emt 0:00:17]} Nd8 {[%emt 0:00:28]} 50. Bg8 {[%emt 0:00:16]} Nb7 {[%emt 0:02:49]} 51. Bf2 {[%emt 0:00:10]} Nc5 {[%emt 0:01:11]} 52. Bd4 {[%emt 0:00:10]} Nd3+ {[%emt 0:00:26]} 53. Ke4 {[%emt 0:00:12]} Ne5 {[%emt 0:00:06]} 0-1

[Event "Gibraltar Challengers A 2020"]
[Site "Caleta"]
[Date "2020.01.21"]
[Round "2.10"]
[White "Ask, Josef"]
[Black "Martinez Lopez, Jaume"]
[Result "1/2-1/2"]
[ECO "B06"]
[WhiteElo "2174"]
[BlackElo "2042"]
[Annotator "ChessBase"]
[PlyCount "72"]
[EventDate "2020.01.20"]
[EventType "swiss"]
[EventCountry "GGB"]
[SourceTitle "playchess.com"]
[Source "ChessBase"]
[SourceQuality "1"]
[TimeControl "6600+10"]

1. e4 {[%emt 0:00:00]} g6 {[%emt 0:00:00]} 2. d4 {[%emt 0:00:44]} Bg7 {[%emt 0:00:42]} 3. Bc4 {[%emt 0:01:53]} e6 {[%emt 0:02:39]} 4. Nc3 {[%emt 0:00:58]} a6 {[%emt 0:00:12]} 5. a4 {[%emt 0:01:46]} b6 {[%emt 0:00:07]} 6. f4 {[%emt 0:03:20]} Bb7 {[%emt 0:01:27]} 7. Nf3 {[%emt 0:00:29]} Ne7 {[%emt 0:02:52]} 8. d5 {[%emt 0:04:28]} Bxc3+ {[%emt 0:11:18]} 9. bxc3 {[%emt 0:00:11]} exd5 {[%emt 0:00:18]} 10. exd5 {[%emt 0:00:44]} d6 {[%emt 0:00:06]} 11. Qd4 {[%emt 0:05:44]} O-O {[%emt 0:00:59]} 12. g4 {[%emt 0:00:59]} c5 {[%emt 0:04:11]} 13. dxc6 {[%emt 0:02:52]} Nbxc6 {[%emt 0:00:14]} 14. Qf2 {[%emt 0:05:16]} Na5 {[%emt 0:04:10]} 15. Ba2 {[%emt 0:05:07]} Nd5 {[%emt 0:02:59]} 16. O-O {[%emt 0:15:52]} Nxc3 {[%emt 0:27:19]} 17. Ng5 {[%emt 0:08:01]} h6 {[%emt 0:07:00]} 18. Nxf7 {[%emt 0:03:42]} Rxf7 {[%emt 0:00:08]} 19. Bxf7+ {[%emt 0:01:31]} Kxf7 {[%emt 0:00:05]} 20. Bb2 {[%emt 0:02:13]} Qc7 {[%emt 0:04:32]} 21. h3 {[%emt 0:03:46]} Ne4 {[%emt 0:01:27]} 22. Qd4 {[%emt 0:05:29]} Qc5 {[%emt 0:00:48]} 23. f5 {[%emt 0:06:22]} g5 {[%emt 0:01:50]} 24. Rfd1 {[%emt 0:05:16]} Nc4 {[%emt 0:00:27]} 25. Rab1 {[%emt 0:01:35]} Bc6 {[%emt 0:01:09]} 26. Kh2 {[%emt 0:02:01]} Ne5 {[%emt 0:06:19]} 27. Qxc5 {[%emt 0:00:37]} Nf3+ {[%emt 0:00:07]} 28. Kg2 {[%emt 0:00:26]} Nh4+ {[%emt 0:00:15]} 29. Kh2 {[%emt 0:01:05]} bxc5 {[%emt 0:00:27]} 30. Ba1 {[%emt 0:00:56]} Re8 {[%emt 0:16:25]} 31. Rb6 {[%emt 0:00:38]} Ba8 {[%emt 0:00:13]} 32. Rxa6 {[%emt 0:00:17]} Nf3+ {[%emt 0:00:14]} 33. Kg2 {[%emt 0:00:50]} Nh4+ {[%emt 0:01:06]} 34. Kg1 {[%emt 0:04:19]} Nf3+ {[%emt 0:00:10]} 35. Kg2 {[%emt 0:00:54]} Nh4+ {[%emt 0:00:53]} 36. Kg1 {[%emt 0:00:12]} Nf3+ {[%emt 0:00:09]} 1/2-1/2

[Event "Gibraltar Challengers A 2020"]
[Site "Caleta"]
[Date "2020.01.21"]
[Round "2.11"]
[White "Bengherabi, Khalil"]
[Black "Zulkipli, Zaidan"]
[Result "1-0"]
[ECO "C45"]
[WhiteElo "2106"]
[BlackElo "2174"]
[Annotator "ChessBase"]
[PlyCount "81"]
[EventDate "2020.01.20"]
[EventType "swiss"]
[EventCountry "GGB"]
[SourceTitle "playchess.com"]
[Source "ChessBase"]
[SourceQuality "1"]
[TimeControl "6600+10"]

1. e4 {[%emt 0:00:00]} e5 {[%emt 0:13:27]} 2. Nf3 {[%emt 0:00:00]} Nc6 {[%emt 0:00:03]} 3. d4 {[%emt 0:00:04]} exd4 {[%emt 0:00:03]} 4. Nxd4 {[%emt 0:00:04]} Nxd4 {[%emt 0:00:22]} 5. Qxd4 {[%emt 0:00:06]} Ne7 {[%emt 0:00:03]} 6. Nc3 {[%emt 0:07:05]} Nc6 {[%emt 0:00:15]} 7. Qe3 {[%emt 0:00:16]} Bb4 {[%emt 0:00:13]} 8. Bd2 {[%emt 0:00:31]} d6 {[%emt 0:08:03]} 9. Qg3 {[%emt 0:16:24]} O-O {[%emt 0:09:04]} 10. O-O-O {[%emt 0:00:22]} Kh8 {[%emt 0:01:02]} 11. f4 {[%emt 0:11:49]} f5 {[%emt 0:03:13]} 12. Bc4 {[%emt 0:10:20]} fxe4 {[%emt 0:10:05]} 13. Nxe4 {[%emt 0:00:14]} Bxd2+ {[%emt 0:03:29]} 14. Rxd2 {[%emt 0:00:05]} Bf5 {[%emt 0:01:53]} 15. Ng5 {[%emt 0:04:38]} Qf6 {[%emt 0:00:13]} 16. Re1 {[%emt 0:01:08]} h6 {[%emt 0:00:37]} 17. Ne4 {[%emt 0:05:48]} Bxe4 {[%emt 0:06:52]} 18. Rxe4 {[%emt 0:00:14]} Rae8 {[%emt 0:00:22]} 19. Rde2 {[%emt 0:01:16]} Rd8 {[%emt 0:12:20]} 20. Bd5 {[%emt 0:31:23]} Nd4 {[%emt 0:18:47]} 21. Rd2 {[%emt 0:01:54]} Nf5 {[%emt 0:08:37]} 22. Qf2 {[%emt 0:09:27]} c6 {[%emt 0:02:53]} 23. Re6 {[%emt 0:01:01]} Qh4 {[%emt 0:00:01]} 24. g3 {[%emt 0:02:50]} Qh3 {[%emt 0:00:09]} 25. Bb3 {[%emt 0:00:55]} d5 {[%emt 0:00:48]} 26. Re5 {[%emt 0:04:50]} Nd6 {[%emt 0:03:04]} 27. Rde2 {[%emt 0:00:01]} Ne4 {[%emt 0:00:59]} 28. Qg1 {[%emt 0:00:01]} Qg4 {[%emt 0:00:52]} 29. Re1 {[%emt 0:00:41]} Rxf4 {[%emt 0:02:20]} 30. Qxa7 {[%emt 0:01:01]} Rf5 {[%emt 0:02:07]} 31. Rxf5 {[%emt 0:00:23]} Qxf5 {[%emt 0:00:02]} 32. Qxb7 {[%emt 0:00:13]} Qg5+ {[%emt 0:02:01]} 33. Kb1 {[%emt 0:00:00]} Qe5 {[%emt 0:00:31]} 34. Rc1 {[%emt 0:00:22]} Qg5 {[%emt 0:00:21]} 35. Rd1 {[%emt 0:00:06]} Qg4 {[%emt 0:00:10]} 36. Rc1 {[%emt 0:00:00]} Qg5 {[%emt 0:00:13]} 37. Rd1 {[%emt 0:00:01]} Qf6 {[%emt 0:00:15]} 38. a4 {[%emt 0:00:19]} Qd6 {[%emt 0:00:18]} 39. Ka2 {[%emt 0:00:19]} Rb8 {[%emt 0:00:08]} 40. Qa7 {[%emt 0:00:02]} Qb4 {[%emt 0:00:16]} 41. Kb1 {[%emt 0:00:25]} 1-0

[Event "Gibraltar Challengers A 2020"]
[Site "Caleta"]
[Date "2020.01.21"]
[Round "2.12"]
[White "Mihajlov, Svetoslav"]
[Black "Raghav, Srivathsav V"]
[Result "1-0"]
[ECO "E92"]
[WhiteElo "2173"]
[BlackElo "2023"]
[Annotator "ChessBase"]
[PlyCount "123"]
[EventDate "2020.01.20"]
[EventType "swiss"]
[EventCountry "GGB"]
[SourceTitle "playchess.com"]
[Source "ChessBase"]
[SourceQuality "1"]
[TimeControl "6600+10"]

1. d4 {[%emt 0:00:00]} Nf6 {[%emt 0:02:21]} 2. c4 {[%emt 0:00:07]} g6 {[%emt 0:00:06]} 3. Nc3 {[%emt 0:00:07]} Bg7 {[%emt 0:00:07]} 4. e4 {[%emt 0:00:06]} d6 {[%emt 0:00:04]} 5. Nf3 {[%emt 0:01:09]} O-O {[%emt 0:00:14]} 6. h3 {[%emt 0:00:07]} e5 {[%emt 0:00:29]} 7. d5 {[%emt 0:00:16]} a5 {[%emt 0:00:07]} 8. Bg5 {[%emt 0:00:23]} Na6 {[%emt 0:00:20]} 9. Be2 {[%emt 0:10:57]} Nc5 {[%emt 0:00:38]} 10. Qc2 {[%emt 0:00:19]} h6 {[%emt 0:01:16]} 11. Be3 {[%emt 0:07:47]} Nfd7 {[%emt 0:00:30]} 12. g4 {[%emt 0:00:35]} c6 {[%emt 0:00:54]} 13. h4 {[%emt 0:05:00]} cxd5 {[%emt 0:03:33]} 14. cxd5 {[%emt 0:00:07]} a4 {[%emt 0:00:06]} 15. h5 {[%emt 0:00:26]} g5 {[%emt 0:00:11]} 16. Nd2 {[%emt 0:00:21]} Re8 {[%emt 0:00:36]} 17. O-O {[%emt 0:00:16]} Bf8 {[%emt 0:01:52]} 18. f3 {[%emt 0:07:30]} b6 {[%emt 0:00:16]} 19. b4 {[%emt 0:01:22]} axb3 {[%emt 0:00:43]} 20. axb3 {[%emt 0:00:10]} Na6 {[%emt 0:03:12]} 21. Nb5 {[%emt 0:04:51]} Bb7 {[%emt 0:02:38]} 22. Nc4 {[%emt 0:00:22]} Ndc5 {[%emt 0:01:09]} 23. Qc3 {[%emt 0:01:21]} Nc7 {[%emt 0:04:09]} 24. Rxa8 {[%emt 0:04:32]} Nxa8 {[%emt 0:01:04]} 25. b4 {[%emt 0:00:37]} Na6 {[%emt 0:00:23]} 26. Ra1 {[%emt 0:00:38]} N6c7 {[%emt 0:16:43]} 27. Na7 {[%emt 0:25:44]} Ba6 {[%emt 0:24:48]} 28. Qb2 {[%emt 0:00:43]} b5 {[%emt 0:04:08]} 29. Nc6 {[%emt 0:03:21]} Qc8 {[%emt 0:00:15]} 30. N4a5 {[%emt 0:02:06]} Qd7 {[%emt 0:00:50]} 31. Bd3 {[%emt 0:02:10]} Bg7 {[%emt 0:00:51]} 32. Qe2 {[%emt 0:00:09]} Nxd5 {[%emt 0:06:13]} 33. exd5 {[%emt 0:00:09]} e4 {[%emt 0:00:05]} 34. Bxe4 {[%emt 0:14:03]} Bxa1 {[%emt 0:00:44]} 35. Bf5 {[%emt 0:00:06]} Qc7 {[%emt 0:00:54]} 36. Qf2 {[%emt 0:00:03]} Rxe3 {[%emt 0:07:31]} 37. Qxe3 {[%emt 0:00:06]} Qb6 {[%emt 0:00:04]} 38. Kf2 {[%emt 0:00:33]} Kf8 {[%emt 0:00:35]} 39. Ke2 {[%emt 0:01:12]} Qxe3+ {[%emt 0:00:09]} 40. Kxe3 {[%emt 0:00:07]} Nb6 {[%emt 0:02:00]} 41. Be4 {[%emt 0:00:15]} Bc3 {[%emt 0:13:37]} 42. Kd3 {[%emt 0:00:47]} Be1 {[%emt 0:00:05]} 43. Nb3 {[%emt 0:00:22]} Nc4 {[%emt 0:02:04]} 44. Nbd4 {[%emt 0:00:10]} Ne5+ {[%emt 0:02:55]} 45. Nxe5 {[%emt 0:05:23]} dxe5 {[%emt 0:00:02]} 46. Nf5 {[%emt 0:03:48]} Bxb4 {[%emt 0:00:43]} 47. Nxh6 {[%emt 0:00:10]} Bc5 {[%emt 0:00:54]} 48. Kc2 {[%emt 0:00:54]} Bc8 {[%emt 0:00:28]} 49. Nf5 {[%emt 0:01:27]} Kg8 {[%emt 0:00:55]} 50. Ng3 {[%emt 0:00:28]} Kg7 {[%emt 0:02:54]} 51. Bf5 {[%emt 0:00:08]} Bb7 {[%emt 0:00:07]} 52. Ne4 {[%emt 0:00:02]} Be7 {[%emt 0:00:12]} 53. Bd7 {[%emt 0:00:49]} Bxd5 {[%emt 0:00:14]} 54. Bxb5 {[%emt 0:00:09]} Bxe4+ {[%emt 0:00:32]} 55. fxe4 {[%emt 0:00:02]} Bf8 {[%emt 0:00:08]} 56. Kd3 {[%emt 0:00:09]} Kf6 {[%emt 0:00:04]} 57. Kc4 {[%emt 0:00:01]} Bh6 {[%emt 0:00:07]} 58. Kd5 {[%emt 0:00:07]} Bf8 {[%emt 0:00:04]} 59. Be8 {[%emt 0:00:07]} Bg7 {[%emt 0:00:13]} 60. Kd6 {[%emt 0:00:07]} Bf8+ {[%emt 0:00:07]} 61. Kd7 {[%emt 0:00:04]} Bh6 {[%emt 0:00:37]} 62. Kd8 {[%emt 0:00:39]} 1-0

[Event "Gibraltar Challengers A 2020"]
[Site "Caleta"]
[Date "2020.01.21"]
[Round "2.13"]
[White "Stolniceanu, Victor-Dumitru"]
[Black "Hristodorescu, Daniel"]
[Result "0-1"]
[ECO "C50"]
[WhiteElo "2074"]
[BlackElo "2172"]
[Annotator "ChessBase"]
[PlyCount "66"]
[EventDate "2020.01.20"]
[EventType "swiss"]
[EventCountry "GGB"]
[SourceTitle "playchess.com"]
[Source "ChessBase"]
[SourceQuality "1"]
[TimeControl "6600+10"]

1. e4 {[%emt 0:08:26]} e5 {[%emt 0:00:06]} 2. Nf3 {[%emt 0:01:22]} Nc6 {[%emt 0:00:09]} 3. Bc4 {[%emt 0:00:09]} Bc5 {[%emt 0:00:09]} 4. O-O {[%emt 0:00:09]} Nf6 {[%emt 0:00:43]} 5. d4 {[%emt 0:00:09]} Bxd4 {[%emt 0:03:49]} 6. Nxd4 {[%emt 0:01:15]} Nxd4 {[%emt 0:01:39]} 7. Bg5 {[%emt 0:01:09]} Ne6 {[%emt 0:04:38]} 8. Bxe6 {[%emt 0:00:14]} dxe6 {[%emt 0:01:20]} 9. Qxd8+ {[%emt 0:00:21]} Kxd8 {[%emt 0:00:06]} 10. f4 {[%emt 0:00:06]} Ke8 {[%emt 0:02:39]} 11. Nc3 {[%emt 0:00:20]} a6 {[%emt 0:06:22]} 12. Rad1 {[%emt 0:01:24]} exf4 {[%emt 0:08:40]} 13. Bxf6 {[%emt 0:02:31]} gxf6 {[%emt 0:00:09]} 14. Rxf4 {[%emt 0:00:11]} e5 {[%emt 0:06:08]} 15. Rxf6 {[%emt 0:02:34]} Be6 {[%emt 0:02:15]} 16. Nd5 {[%emt 0:01:22]} Rc8 {[%emt 0:00:30]} 17. c4 {[%emt 0:00:58]} c6 {[%emt 0:00:41]} 18. Ne3 {[%emt 0:00:13]} Rd8 {[%emt 0:01:08]} 19. b3 {[%emt 0:00:30]} Rxd1+ {[%emt 0:01:25]} 20. Nxd1 {[%emt 0:00:07]} Ke7 {[%emt 0:00:03]} 21. Rh6 {[%emt 0:16:52]} Rd8 {[%emt 0:00:58]} 22. Nf2 {[%emt 0:00:09]} Rd2 {[%emt 0:01:41]} 23. Rxh7 {[%emt 0:00:10]} Rxa2 {[%emt 0:00:33]} 24. g4 {[%emt 0:00:45]} Rb2 {[%emt 0:06:42]} 25. Rh3 {[%emt 0:03:17]} b5 {[%emt 0:01:33]} 26. Rc3 {[%emt 0:00:06]} b4 {[%emt 0:03:46]} 27. Rg3 {[%emt 0:00:28]} a5 {[%emt 0:00:05]} 28. g5 {[%emt 0:03:04]} a4 {[%emt 0:00:58]} 29. bxa4 {[%emt 0:00:09]} Bxc4 {[%emt 0:00:43]} 30. h4 {[%emt 0:01:17]} b3 {[%emt 0:01:17]} 31. Rc3 {[%emt 0:00:16]} Rc2 {[%emt 0:00:27]} 32. Nd1 {[%emt 0:03:15]} b2 {[%emt 0:01:53]} 33. Rxc4 {[%emt 0:08:39]} b1=Q {[%emt 0:00:34]} 0-1

[Event "Gibraltar Challengers A 2020"]
[Site "Caleta"]
[Date "2020.01.21"]
[Round "2.14"]
[White "Nebel, Jens"]
[Black "Erdogan, Hassan"]
[Result "1-0"]
[ECO "B76"]
[WhiteElo "2168"]
[BlackElo "1830"]
[Annotator "ChessBase"]
[PlyCount "73"]
[EventDate "2020.01.20"]
[EventType "swiss"]
[EventCountry "GGB"]
[SourceTitle "playchess.com"]
[Source "ChessBase"]
[SourceQuality "1"]
[TimeControl "6600+10"]

1. e4 {[%emt 0:00:00]} c5 {[%emt 0:00:00]} 2. Nf3 {[%emt 0:00:00]} g6 {[%emt 0:00:11]} 3. d4 {[%emt 0:00:06]} cxd4 {[%emt 0:00:04]} 4. Nxd4 {[%emt 0:00:05]} Bg7 {[%emt 0:01:41]} 5. Nc3 {[%emt 0:00:23]} d6 {[%emt 0:00:28]} 6. Be3 {[%emt 0:00:09]} Nf6 {[%emt 0:00:46]} 7. f3 {[%emt 0:00:21]} O-O {[%emt 0:01:03]} 8. Qd2 {[%emt 0:00:07]} Nc6 {[%emt 0:13:06]} 9. O-O-O {[%emt 0:00:20]} Nxd4 {[%emt 0:00:44]} 10. Bxd4 {[%emt 0:00:07]} Be6 {[%emt 0:03:59]} 11. Kb1 {[%emt 0:00:12]} a6 {[%emt 0:04:15]} 12. g4 {[%emt 0:04:24]} b5 {[%emt 0:01:21]} 13. Nd5 {[%emt 0:03:40]} Bxd5 {[%emt 0:06:10]} 14. exd5 {[%emt 0:00:06]} Qd7 {[%emt 0:00:33]} 15. h4 {[%emt 0:02:50]} Qb7 {[%emt 0:03:02]} 16. g5 {[%emt 0:00:56]} Nh5 {[%emt 0:11:44]} 17. Bxg7 {[%emt 0:02:31]} Kxg7 {[%emt 0:00:10]} 18. Bh3 {[%emt 0:00:56]} b4 {[%emt 0:16:41]} 19. Bg4 {[%emt 0:05:04]} a5 {[%emt 0:00:05]} 20. Rhe1 {[%emt 0:02:48]} a4 {[%emt 0:00:27]} 21. Re4 {[%emt 0:03:33]} Rfb8 {[%emt 0:10:54]} 22. Rde1 {[%emt 0:05:18]} Ra7 {[%emt 0:04:10]} 23. f4 {[%emt 0:10:59]} b3 {[%emt 0:02:44]} 24. cxb3 {[%emt 0:02:24]} axb3 {[%emt 0:00:17]} 25. a3 {[%emt 0:03:33]} f5 {[%emt 0:13:46]} 26. Rb4 {[%emt 0:21:09]} Qxb4 {[%emt 0:10:25]} 27. axb4 {[%emt 0:00:10]} Rba8 {[%emt 0:00:00]} 28. Rxe7+ {[%emt 0:08:52]} Rxe7 {[%emt 0:00:16]} 29. Bxh5 {[%emt 0:00:19]} gxh5 {[%emt 0:00:03]} 30. Qc3+ {[%emt 0:00:14]} Kg8 {[%emt 0:00:22]} 31. Qxb3 {[%emt 0:00:28]} Rb7 {[%emt 0:01:02]} 32. Qd3 {[%emt 0:00:45]} Rab8 {[%emt 0:00:15]} 33. Qxf5 {[%emt 0:00:10]} Rxb4 {[%emt 0:00:02]} 34. Qe6+ {[%emt 0:00:14]} Kg7 {[%emt 0:00:15]} 35. Qf6+ {[%emt 0:00:21]} Kg8 {[%emt 0:00:03]} 36. f5 {[%emt 0:00:18]} Rxh4 {[%emt 0:00:27]} 37. Qe6+ {[%emt 0:02:17]} 1-0

[Event "Gibraltar Challengers A 2020"]
[Site "Caleta"]
[Date "2020.01.21"]
[Round "2.15"]
[White "Karlsson, Jorgen"]
[Black "De Abreu, Roberto N"]
[Result "0-1"]
[ECO "A45"]
[WhiteElo "2054"]
[BlackElo "2154"]
[Annotator "ChessBase"]
[PlyCount "90"]
[EventDate "2020.01.20"]
[EventType "swiss"]
[EventCountry "GGB"]
[SourceTitle "playchess.com"]
[Source "ChessBase"]
[SourceQuality "1"]
[TimeControl "6600+10"]

1. d4 {[%emt 0:00:00]} Nf6 {[%emt 0:00:11]} 2. Bf4 {[%emt 0:00:01]} c5 {[%emt 0:00:01]} 3. e3 {[%emt 0:00:35]} Nd5 {[%emt 0:00:01]} 4. Bxb8 {[%emt 0:01:08]} Rxb8 {[%emt 0:00:02]} 5. c4 {[%emt 0:00:29]} Nf6 {[%emt 0:02:45]} 6. Nc3 {[%emt 0:00:25]} g6 {[%emt 0:05:01]} 7. Nf3 {[%emt 0:01:39]} Bg7 {[%emt 0:00:05]} 8. Qa4 {[%emt 0:03:09]} cxd4 {[%emt 0:15:38]} 9. exd4 {[%emt 0:02:01]} a6 {[%emt 0:00:52]} 10. Bd3 {[%emt 0:05:19]} O-O {[%emt 0:00:06]} 11. O-O {[%emt 0:00:29]} d6 {[%emt 0:08:17]} 12. Rad1 {[%emt 0:04:55]} b6 {[%emt 0:04:51]} 13. Rfe1 {[%emt 0:04:20]} Bb7 {[%emt 0:05:25]} 14. Be2 {[%emt 0:03:44]} Nh5 {[%emt 0:04:24]} 15. g3 {[%emt 0:05:22]} e6 {[%emt 0:03:52]} 16. Qc2 {[%emt 0:06:18]} Nf6 {[%emt 0:01:11]} 17. Nd2 {[%emt 0:05:13]} Qc7 {[%emt 0:00:43]} 18. Qd3 {[%emt 0:06:42]} d5 {[%emt 0:02:47]} 19. Nb3 {[%emt 0:04:06]} dxc4 {[%emt 0:01:52]} 20. Qxc4 {[%emt 0:00:06]} Qd6 {[%emt 0:01:40]} 21. Qd3 {[%emt 0:02:24]} Qc6 {[%emt 0:01:53]} 22. f3 {[%emt 0:01:06]} Rfd8 {[%emt 0:02:46]} 23. Rd2 {[%emt 0:03:43]} h5 {[%emt 0:01:21]} 24. Bd1 {[%emt 0:01:47]} Nd5 {[%emt 0:05:37]} 25. Ne4 {[%emt 0:04:02]} a5 {[%emt 0:00:16]} 26. a3 {[%emt 0:06:49]} Ne7 {[%emt 0:01:16]} 27. Rc2 {[%emt 0:08:16]} Qd7 {[%emt 0:00:34]} 28. Be2 {[%emt 0:03:49]} a4 {[%emt 0:00:58]} 29. Nbd2 {[%emt 0:02:15]} Nf5 {[%emt 0:02:49]} 30. Nf1 {[%emt 0:04:31]} Nxd4 {[%emt 0:03:16]} 31. Rd2 {[%emt 0:00:40]} Qe7 {[%emt 0:01:44]} 32. Qe3 {[%emt 0:04:43]} Nb3 {[%emt 0:00:48]} 33. Rxd8+ {[%emt 0:01:10]} Rxd8 {[%emt 0:00:25]} 34. Kg2 {[%emt 0:02:50]} Bd4 {[%emt 0:00:17]} 35. Qf4 {[%emt 0:00:33]} Bxb2 {[%emt 0:01:21]} 36. Bb5 {[%emt 0:00:51]} Nc5 {[%emt 0:01:02]} 37. Nxc5 {[%emt 0:01:27]} Qxc5 {[%emt 0:00:07]} 38. Qxa4 {[%emt 0:01:32]} Bxa3 {[%emt 0:01:41]} 39. Be2 {[%emt 0:01:51]} Bb2 {[%emt 0:03:32]} 40. Qb3 {[%emt 0:01:37]} Bd4 {[%emt 0:00:23]} 41. Qc4 {[%emt 0:00:20]} Qe5 {[%emt 0:00:37]} 42. Rd1 {[%emt 0:00:24]} Rd5 {[%emt 0:00:52]} 43. Qc2 {[%emt 0:02:05]} Rc5 {[%emt 0:01:04]} 44. Qd2 {[%emt 0:00:52]} Rc3 {[%emt 0:01:01]} 45. h4 {[%emt 0:01:37]} Rb3 {[%emt 0:02:49]} 0-1